bitfinex/quotes_ETHUSD_20241030
["timestamp","ask_amount","ask_price","bid_price","bid_amount"]
[1730298184437,3.68392,2714.5,2714.1,0.46323039]
[1730298184845,3.68427,2714.3,2714.1,0.46323039]
[1730298185168,3.68432,2714.2,2714.1,0.46323039]
[1730298188547,0.84528707,2714.6,2714.1,0.46323039]
[1730298188747,3.68432,2714.2,2714.1,0.46323039]
[1730298191663,3.68407,2714.4,2714.1,1.26883039]
[1730298191867,3.68407,2714.4,2714.1,1.32912821]
[1730298192067,3.68386,2714.6,2714.1,1.32912821]
[1730298192375,3.68345,2714.9,2714.4,3.68396]
[1730298192550,3.68367,2714.7,2714.3,3.68411]
[1730298192764,3.68365,2714.7,2714.3,3.68409]
[1730298193061,7.36737,2714.7,2714.2,4.2343]
[1730298193266,3.68365,2714.7,2714.2,8.83732104]
[1730298193466,3.68346,2714.9,2714.3,3.68416]
[1730298193649,3.68346,2714.9,2714.2,1.46876104]
[1730298193840,3.68346,2714.9,2714.3,3.68417]
[1730298194036,3.68362,2714.8,2714.3,7.3683]
[1730298194289,3.68362,2714.8,2714.3,4.69471914]
[1730298194455,7.36694,2714.9,2714.4,3.68403]
[1730298194776,3.68346,2714.9,2714.4,3.68403]
[1730298194963,3.6836,2714.8,2714.3,4.69476914]
[1730298195341,0.7865,2715.2,2714.3,4.69476914]
[1730298195543,3.68343,2714.9,2714.4,3.68396]
[1730298195779,3.68319,2715.1,2714.6,0.7996]
[1730298195980,3.68325,2715.0,2714.6,0.7996]
[1730298196652,3.68297,2715.2,2714.6,5.300046]
[1730298196842,3.68314,2715.1,2714.7,3.68353]
[1730298197049,3.68294,2715.3,2714.7,3.68353]
[1730298197256,3.68283,2715.3,2714.8,3.68337]
[1730298198152,3.68298,2715.2,2714.6,4.48325]
[1730298198343,3.68346,2714.9,2714.6,0.7996]
[1730298198564,3.68351,2714.8,2714.6,0.7996]
[1730298198887,3.68364,2714.7,2714.2,4.50616]
[1730298199764,3.68392,2714.5,2714.2,0.8219]
[1730298199972,3.4985266,2714.8,2714.1,0.46323039]
[1730298200172,3.68378,2714.6,2714.1,0.46323039]
[1730298200550,7.1820466,2714.8,2714.1,0.46323039]
[1730298200742,3.68428,2714.3,2714.1,0.46323039]
[1730298201049,3.68432,2714.2,2714.1,0.52352821]
[1730298201560,3.68428,2714.3,2714.1,0.52352821]
[1730298202086,3.68432,2714.2,2714.1,0.52352821]
[1730298202848,4.44232,2714.2,2714.1,0.52352821]
[1730298204962,4.44232,2714.2,2714.1,0.19548843]
[1730298205289,10.9408666,2714.2,2713.2,5.01354786]
[1730298205585,3.6846,2714.0,2713.4,3.6853]
[1730298205881,3.68428,2714.3,2713.7,0.8063]
[1730298206089,3.68428,2714.3,2713.8,3.68478]
[1730298206662,7.36801,2714.5,2713.9,3.68472]
[1730298206894,3.68396,2714.5,2713.9,3.68473]
[1730298207062,3.68407,2714.4,2713.9,3.68469]
[1730298207268,3.68407,2714.4,2714.0,0.7818578]
[1730298207456,3.6842,2714.3,2713.8,4.133888]
[1730298207657,3.68405,2714.4,2713.8,4.133838]
[1730298207853,3.68419,2714.3,2713.8,4.133968]
[1730298208662,3.68433,2714.2,2713.9,0.4940268]
[1730298208875,3.68419,2714.3,2713.7,4.4913]
[1730298209090,3.68433,2714.2,2713.7,4.4913]
[1730298209288,3.4985266,2714.5,2713.7,0.8063]
[1730298209494,3.68476,2713.9,2713.4,0.8318]
[1730298209805,3.68503,2713.7,2713.4,0.8318]
[1730298210292,3.68494,2713.8,2713.4,0.8318]
[1730298210499,3.68478,2713.9,2713.4,5.02108479]
[1730298210669,3.68471,2714.0,2713.4,5.02102479]
[1730298210874,3.68482,2713.9,2713.4,5.02102479]
[1730298211276,3.68487,2713.8,2713.4,1.33569479]
[1730298211688,3.68473,2713.9,2713.4,5.02103479]
[1730298212003,3.68487,2713.8,2713.4,5.02103479]
[1730298212305,3.68446,2714.1,2713.5,0.50210348]
[1730298212621,3.68448,2714.1,2713.6,4.23507]
[1730298212771,3.68448,2714.1,2713.6,0.55]
[1730298212772,3.68468,2714.0,2713.6,0.55]
[1730298213094,4.47864,2714.5,2713.4,5.02100479]
[1730298213095,3.68482,2713.9,2713.4,1.33569479]
[1730298213491,3.68494,2713.8,2713.4,0.8318]
[1730298213669,3.68513,2713.7,2713.4,0.8318]
[1730298214060,3.68494,2713.8,2713.4,0.8318]
[1730298215362,3.01,2714.7,2713.4,0.8318]
[1730298215565,3.68459,2714.0,2713.5,3.68518]
[1730298215996,3.68428,2714.3,2713.7,3.68489]
[1730298216168,3.68432,2714.2,2713.7,3.68489]
[1730298216375,7.36857,2714.3,2713.7,3.68489]
[1730298216568,3.68428,2714.3,2713.8,3.68482]
[1730298216788,3.68444,2714.2,2713.6,3.68501]
[1730298216972,3.68444,2714.2,2713.7,0.792018]
[1730298217192,3.68444,2714.2,2713.7,4.476998]
[1730298217612,3.6842,2714.3,2713.8,3.68482]
[1730298217811,3.68435,2714.2,2713.8,3.68482]
[1730298218109,3.68421,2714.3,2714.0,0.8165]
[1730298218470,7.36852,2714.3,2714.1,0.05384381]
[1730298218672,3.68402,2714.5,2714.1,0.05384381]
[1730298218871,7.36805,2714.5,2714.1,0.05384381]
[1730298219104,3.68409,2714.4,2714.1,0.05384381]
[1730298219338,3.68402,2714.5,2714.1,0.05384381]
[1730298219673,0.06341181,2714.6,2714.1,0.50933019]
[1730298220006,3.68353,2714.8,2714.3,4.51342]
[1730298220307,3.68338,2714.9,2714.4,3.74434179]
[1730298220664,3.68338,2714.9,2714.5,3.68391]
[1730298221005,3.68351,2714.8,2714.5,0.06029097]
[1730298221515,3.68386,2714.6,2714.5,0.06029097]
[1730298221710,3.68386,2714.6,2714.3,0.8293]
[1730298221916,3.68397,2714.5,2714.3,0.8293]
[1730298222209,3.68405,2714.4,2714.0,0.7898]
[1730298222423,3.68427,2714.3,2714.0,0.7898]
[1730298223211,3.68432,2714.2,2714.0,0.7898]
[1730298223575,3.68414,2714.4,2714.0,0.7898]
[1730298223774,7.36831,2714.4,2714.0,0.7898]
[1730298224284,3.68414,2714.4,2714.0,0.7898]
[1730298224499,3.68387,2714.6,2714.0,4.47437]
[1730298224703,3.68401,2714.5,2714.0,4.47439]
[1730298224910,3.68401,2714.5,2714.0,8.15898]
[1730298225207,3.68381,2714.6,2714.0,4.47439]
[1730298225707,3.68381,2714.6,2714.1,3.68437]
[1730298226010,3.6839,2714.6,2714.0,4.47432]
[1730298226223,3.6839,2714.6,2714.1,3.68444]
[1730298227914,3.68356,2714.8,2714.2,3.68425]
[1730298228084,3.68372,2714.7,2714.2,3.68425]
[1730298228618,3.68372,2714.7,2714.3,3.68418]
[1730298228789,3.68346,2714.9,2714.3,3.68418]
[1730298228979,3.6836,2714.8,2714.3,3.68418]
[1730298229305,3.68368,2714.7,2714.2,3.68425]
[1730298229517,3.68368,2714.7,2714.2,8.24734526]
[1730298229814,3.68368,2714.7,2714.3,3.68418]
[1730298230373,3.6836,2714.8,2714.3,3.68418]
[1730298230778,3.68339,2714.9,2714.4,4.45048]
[1730298231400,3.68351,2714.8,2714.4,0.7665]
[1730298231912,3.68341,2714.9,2714.4,4.45046]
[1730298232122,3.68363,2714.8,2714.4,0.7665]
[1730298232910,3.68338,2714.9,2714.4,0.7665]
[1730298233115,3.68338,2714.9,2714.4,4.45045]
[1730298233941,3.68325,2715.0,2714.4,1.74151654]
[1730298234136,3.68283,2715.3,2714.4,1.66784053]
[1730298234337,3.68345,2714.9,2714.5,3.68391]
[1730298234545,3.68318,2715.1,2714.5,3.68383]
[1730298234722,3.68318,2715.1,2714.6,3.68376]
[1730298234923,3.68326,2715.0,2714.6,3.68376]
[1730298235501,3.6832,2715.1,2714.6,3.68369]
[1730298235802,3.6832,2715.1,2714.6,3.68371]
[1730298236142,3.6832,2715.1,2714.5,3.6838]
[1730298236323,3.6832,2715.1,2714.6,3.68374]
[1730298236528,7.36642,2715.1,2714.6,3.68374]
[1730298236701,3.68292,2715.3,2714.6,4.497144]
[1730298236903,3.68299,2715.2,2714.7,3.68356]
[1730298237210,1.63725574,2715.7,2714.8,0.8048]
[1730298237211,3.68265,2715.5,2714.8,0.8048]
[1730298237413,6.14002574,2715.7,2715.3,0.8048]
[1730298237414,5.31962574,2715.7,2715.3,0.8048]
[1730298237738,0.8204,2716.0,2715.5,3.68252]
[1730298237920,4.45057,2716.3,2715.3,0.8048]
[1730298238126,4.45057,2716.3,2715.5,3.68249]
[1730298238127,3.68191,2716.0,2715.5,3.68249]
[1730298238807,3.68205,2715.9,2715.4,3.68269]
[1730298239007,3.68205,2715.9,2715.4,4.1763158]
[1730298239638,3.68183,2716.1,2715.6,3.68236]
[1730298239808,3.68189,2716.0,2715.5,0.55]
[1730298240007,3.68189,2716.0,2715.5,1.10310558]
[1730298240304,3.68205,2715.9,2715.5,0.55310558]
[1730298240458,3.68205,2715.9,2715.4,3.68263]
[1730298240610,3.68215,2715.8,2715.4,3.68263]
[1730298241147,3.68189,2716.0,2715.4,3.68263]
[1730298241327,7.36389,2716.0,2715.5,3.68253]
[1730298242056,3.68164,2716.2,2715.5,0.816996]
[1730298242216,3.68183,2716.1,2715.6,3.68233]
[1730298242417,3.68183,2716.1,2715.6,7.36468]
[1730298242765,3.68189,2716.0,2715.6,4.473798]
[1730298243049,3.68164,2716.2,2715.7,0.8191]
[1730298243050,3.68175,2716.1,2715.7,0.8191]
[1730298243352,0.7691,2716.3,2715.8,3.68206]
[1730298243353,3.68148,2716.3,2715.8,3.68206]
[1730298243569,3.74496659,2716.4,2715.9,0.450116]
[1730298243570,7.42639659,2716.4,2715.9,0.450116]
[1730298243862,3.74496659,2716.4,2715.9,4.132106]
[1730298244062,3.68154,2716.3,2715.9,0.450116]
[1730298244275,7.36331,2716.2,2715.7,0.8191]
[1730298244569,3.68175,2716.1,2715.7,0.8191]
[1730298245141,3.68175,2716.1,2715.7,4.50136]
[1730298245353,0.06353659,2716.4,2715.7,5.3988728]
[1730298245666,3.68148,2716.3,2715.8,7.36416]
[1730298245843,3.68148,2716.3,2715.8,3.68208]
[1730298246039,3.68148,2716.3,2715.9,0.53986928]
[1730298246262,7.36307,2716.3,2715.9,0.53986928]
[1730298246469,3.68169,2716.2,2715.9,0.53986928]
[1730298246768,0.7717,2716.6,2715.7,1.7166128]
[1730298246769,3.68189,2716.0,2715.7,1.7166128]
[1730298246928,3.6814,2716.4,2715.7,0.8191]
[1730298247136,3.68212,2715.9,2715.5,0.8257]
[1730298247368,3.68225,2715.8,2715.5,0.8257]
[1730298247666,3.68212,2715.9,2715.2,0.7702]
[1730298247667,3.68267,2715.5,2715.2,0.7702]
[1730298247867,3.68283,2715.3,2715.2,0.7702]
[1730298248072,3.68283,2715.3,2714.9,0.7702]
[1730298248373,0.7665,2715.9,2714.9,0.7702]
[1730298248374,3.6827,2715.4,2714.9,4.45356]
[1730298248533,3.6827,2715.4,2714.9,5.267259]
[1730298248733,3.68251,2715.6,2715.1,3.68307]
[1730298248938,7.36503,2715.6,2715.1,3.68307]
[1730298249132,0.7665,2715.9,2715.0,3.68313]
[1730298249133,3.68273,2715.4,2715.0,3.68313]
[1730298249668,3.68249,2715.6,2715.0,3.68313]
[1730298249871,3.68249,2715.6,2715.0,4.2098329]
[1730298250335,3.68251,2715.6,2715.2,3.68295]
[1730298250535,3.68251,2715.6,2715.1,4.23303]
[1730298251043,3.68229,2715.7,2715.2,3.68295]
[1730298251363,3.68256,2715.5,2715.1,0.55]
[1730298251563,3.68272,2715.4,2715.0,3.68315]
[1730298251770,7.36522,2715.5,2715.0,3.68315]
[1730298251944,3.68256,2715.5,2715.0,3.68315]
[1730298252145,7.36521,2715.5,2715.0,3.68315]
[1730298252336,3.68256,2715.5,2714.9,0.7702]
[1730298252651,3.68256,2715.5,2714.6,4.4922]
[1730298252652,3.68319,2715.1,2714.6,4.4922]
[1730298253069,3.68319,2715.1,2714.7,3.68364]
[1730298253381,3.68318,2715.1,2714.6,4.49226]
[1730298253534,3.68298,2715.2,2714.7,3.68363]
[1730298253731,3.68269,2715.4,2714.9,3.68332]
[1730298254152,3.68262,2715.5,2715.0,3.68316]
[1730298254480,3.68275,2715.4,2714.9,7.36661]
[1730298254631,3.68275,2715.4,2714.9,4.419951]
[1730298254835,3.68275,2715.4,2714.8,3.68349]
[1730298255287,3.68275,2715.4,2714.9,3.68333]
[1730298255430,3.68297,2715.2,2714.7,3.68355]
[1730298255649,3.68297,2715.2,2714.7,4.93273506]
[1730298256047,3.68297,2715.2,2714.8,3.6835]
[1730298256248,3.68297,2715.2,2714.7,4.93279506]
[1730298256637,4.47611,2715.7,2714.6,0.8085]
[1730298256638,3.68319,2715.1,2714.6,0.8085]
[1730298256865,3.68324,2715.0,2714.6,0.8085]
[1730298257076,3.68329,2715.0,2714.6,0.8085]
[1730298257459,3.6831,2715.1,2714.6,5.309794]
[1730298257675,0.8052,2715.5,2714.7,0.07367443]
[1730298257878,0.8052,2716.6,2715.5,3.68254]
[1730298258036,3.68201,2716.0,2715.5,3.68254]
[1730298258236,3.68201,2716.0,2715.4,3.68268]
[1730298258237,3.68188,2716.0,2715.4,3.68268]
[1730298258471,3.68216,2715.8,2715.4,3.68268]
[1730298259393,3.68208,2715.9,2715.4,3.68268]
[1730298259595,3.68181,2716.1,2715.4,0.736556]
[1730298259798,4.43433,2716.2,2715.4,0.7923]
[1730298259959,4.43433,2716.2,2715.8,3.68213]
[1730298260287,3.68169,2716.2,2715.7,3.68227]
[1730298260493,7.36338,2716.2,2715.7,3.68227]
[1730298260701,3.68169,2716.2,2715.7,3.68227]
[1730298261990,3.68189,2716.0,2715.5,4.23249]
[1730298262296,3.68211,2715.9,2715.4,4.47489]
[1730298262651,7.36441,2715.8,2715.4,0.7923]
[1730298262897,3.68215,2715.8,2715.3,3.68281]
[1730298263185,3.68202,2715.9,2715.3,3.68275]
[1730298263392,3.68202,2715.9,2715.2,4.47783]
[1730298263393,3.68237,2715.7,2715.2,0.795]
[1730298263553,3.68223,2715.8,2715.3,3.68277]
[1730298264184,3.68212,2715.9,2715.4,3.68268]
[1730298264399,3.68212,2715.9,2715.4,7.3653]
[1730298264599,3.68212,2715.9,2715.4,7.36524]
[1730298264893,3.68212,2715.9,2715.4,3.68265]
[1730298265579,3.68212,2715.9,2715.2,0.795]
[1730298265580,3.68216,2715.8,2715.2,4.47783]
[1730298265767,3.68216,2715.8,2715.4,3.68269]
[1730298266171,4.43691,2716.0,2715.4,3.68269]
[1730298266371,3.68208,2715.9,2715.4,3.68262]
[1730298267067,0.7549,2716.0,2715.2,0.795]
[1730298267265,0.7549,2716.0,2714.9,0.7994]
[1730298267578,3.68257,2715.5,2715.0,3.68323]
[1730298268305,3.68257,2715.5,2715.0,7.36639]
[1730298268459,3.68247,2715.6,2715.1,3.68309]
[1730298269395,3.68231,2715.7,2715.3,3.68283]
[1730298269962,3.68231,2715.7,2715.1,3.68309]
[1730298270169,3.68263,2715.5,2715.0,3.68324]
[1730298270370,3.68243,2715.6,2715.1,3.68302]
[1730298270609,3.68232,2715.7,2715.2,3.68286]
[1730298270904,3.68215,2715.8,2715.3,3.68276]
[1730298271401,7.36442,2715.8,2715.3,3.68276]
[1730298271613,3.6823,2715.7,2715.3,3.68276]
[1730298271784,3.6823,2715.7,2715.2,3.68295]
[1730298272186,3.68212,2715.9,2715.4,3.68263]
[1730298272393,3.68212,2715.9,2715.4,0.8052]
[1730298272592,3.68212,2715.9,2715.4,4.48782]
[1730298273193,7.36422,2715.9,2715.4,4.48782]
[1730298273408,3.6821,2715.9,2715.4,4.48782]
[1730298273622,3.6821,2715.9,2715.4,0.8052]
[1730298273623,3.68231,2715.7,2715.4,0.8052]
[1730298273827,3.68222,2715.8,2715.4,0.8052]
[1730298275225,0.7549,2716.0,2715.4,4.48788]
[1730298275515,3.68212,2715.9,2715.4,4.48782]
[1730298275721,3.68212,2715.9,2715.4,4.48652511]
[1730298276022,3.68168,2716.2,2715.7,3.68221]
[1730298276320,3.68177,2716.1,2715.7,3.68221]
[1730298276521,3.68167,2716.2,2715.7,3.68221]
[1730298277016,3.68177,2716.1,2715.5,3.68245]
[1730298277191,3.68191,2716.0,2715.6,3.68242]
[1730298277784,3.68191,2716.0,2715.5,4.21278056]
[1730298278108,0.82789214,2716.6,2715.8,3.68205]
[1730298278308,3.68153,2716.3,2715.8,3.68205]
[1730298278713,3.68153,2716.3,2715.8,4.48535]
[1730298279085,3.68162,2716.2,2715.8,4.48535]
[1730298279425,4.51328,2716.0,2715.5,4.47324]
[1730298279623,3.68221,2715.8,2715.3,4.47343]
[1730298280403,4.51327,2716.0,2715.3,4.47343]
[1730298280404,4.51327,2716.0,2715.4,3.68269]
[1730298280703,4.51327,2716.0,2715.0,4.11245849]
[1730298280704,3.68211,2715.9,2715.0,0.8248]
[1730298280905,3.68211,2715.9,2714.7,0.8248]
[1730298280906,3.6831,2715.1,2714.7,0.8248]
[1730298281099,0.7785,2715.4,2714.5,3.68385]
[1730298281425,3.68318,2715.1,2714.5,4.134695]
[1730298281627,3.68311,2715.1,2714.5,0.450865]
[1730298281834,3.68311,2715.1,2714.4,0.8248]
[1730298281835,3.68317,2715.1,2714.4,4.50876]
[1730298282021,3.68317,2715.1,2714.5,3.68385]
[1730298282188,3.68317,2715.1,2714.4,0.8248]
[1730298282395,4.50685,2714.9,2714.3,3.68416]
[1730298282744,3.68358,2714.8,2714.2,4.50142]
[1730298282921,4.50685,2714.9,2714.2,0.8171]
[1730298283227,4.50685,2714.9,2714.2,4.50141]
[1730298283427,3.68357,2714.8,2714.2,4.50141]
[1730298283596,4.50685,2714.9,2714.3,3.68418]
[1730298284296,3.68352,2714.8,2714.2,8.18565]
[1730298284637,3.68352,2714.8,2714.2,4.50134]
[1730298284808,3.68351,2714.8,2714.0,0.7893]
[1730298285006,3.68384,2714.6,2714.0,4.47388]
[1730298285195,3.6836,2714.8,2713.6,3.68503]
[1730298285196,4.44662,2714.5,2713.6,3.68503]
[1730298285533,4.44662,2714.5,2713.4,0.7893]
[1730298285534,3.68413,2714.4,2713.9,3.68473]
[1730298285737,4.44665,2714.5,2713.9,3.68473]
[1730298286200,3.68408,2714.4,2713.9,3.68473]
[1730298286604,3.68428,2714.3,2713.7,3.68493]
[1730298287199,3.68428,2714.3,2713.6,7.1835666]
[1730298287200,7.36821,2714.4,2713.8,3.68484]
[1730298287499,3.68408,2714.4,2713.8,3.68484]
[1730298287725,7.36823,2714.4,2713.8,3.68484]
[1730298288030,0.7627,2714.5,2714.0,3.68448]
[1730298288728,0.7627,2714.5,2714.1,3.68445]
[1730298288940,3.68359,2714.8,2714.3,3.68412]
[1730298289148,3.68337,2714.9,2714.4,3.68404]
[1730298289442,3.68307,2715.2,2714.5,3.6839]
[1730298289641,3.68307,2715.2,2714.6,3.68368]
[1730298290019,3.68307,2715.2,2714.5,3.6839]
[1730298290215,3.68317,2715.1,2714.5,7.36774]
[1730298290544,3.68324,2715.0,2714.5,3.68384]
[1730298291752,3.68372,2714.7,2714.4,0.7971]
[1730298292046,3.68412,2714.4,2714.0,0.8225]
[1730298292226,3.4985266,2714.3,2713.4,0.8225]
[1730298292427,7.36965,2713.9,2713.4,4.5079]
[1730298292619,3.68482,2713.9,2713.5,3.68527]
[1730298293017,3.68482,2713.9,2713.5,0.819324]
[1730298293442,3.4985266,2714.0,2713.2,0.52163786]
[1730298293605,7.1831366,2714.0,2713.2,0.52163786]
[1730298293806,3.68516,2713.6,2713.2,0.52163786]
[1730298294033,3.68478,2713.9,2713.3,3.68547]
[1730298294220,3.68456,2714.1,2713.4,3.6854]
[1730298294415,3.68497,2713.8,2713.3,3.68545]
[1730298294749,3.6848,2713.9,2713.3,3.6855]
[1730298294909,4.44684,2714.2,2713.3,3.6855]
[1730298294910,3.68455,2714.1,2713.5,3.68521]
[1730298295104,3.68408,2714.4,2713.8,3.68477]
[1730298295411,3.6842,2714.3,2713.8,3.68485]
[1730298295752,3.6842,2714.3,2713.7,3.6849]
[1730298295753,3.68439,2714.2,2713.7,3.6849]
[1730298296239,3.8254,2714.5,2713.6,0.828]
[1730298296240,3.68455,2714.1,2713.6,0.828]
[1730298296441,0.8254,2714.5,2713.3,3.68546]
[1730298296653,3.68468,2714.0,2713.4,3.68532]
[1730298297060,7.36935,2714.0,2713.5,3.68527]
[1730298297365,3.68439,2714.2,2713.5,0.55]
[1730298297567,0.8254,2714.5,2713.9,7.36927]
[1730298297568,3.68405,2714.4,2713.9,7.36927]
[1730298297726,3.68405,2714.4,2713.9,3.68462]
[1730298298617,0.8254,2714.5,2714.0,3.68458]
[1730298298823,3.68385,2714.6,2714.0,3.68458]
[1730298299059,3.68416,2714.4,2713.9,3.68473]
[1730298299561,3.68413,2714.4,2713.9,3.68473]
[1730298299764,7.36828,2714.4,2713.9,4.421683]
[1730298299968,3.68413,2714.4,2713.9,7.36938]
[1730298300266,3.68377,2714.7,2714.0,0.7604]
[1730298300439,3.68402,2714.5,2714.0,4.44488]
[1730298300633,3.68384,2714.6,2714.1,3.68444]
[1730298300834,8.25599533,2714.8,2714.2,3.68431]
[1730298301052,4.57235533,2714.8,2714.3,3.68418]
[1730298301249,3.74695533,2714.8,2714.3,3.68418]
[1730298301654,3.74695533,2714.8,2714.3,0.7812978]
[1730298301856,3.68366,2714.7,2714.3,0.7812978]
[1730298302034,3.68366,2714.7,2714.1,0.55]
[1730298302035,3.68364,2714.7,2714.1,0.55]
[1730298302359,3.68384,2714.6,2714.0,4.44498]
[1730298302558,3.68398,2714.5,2714.0,4.889478]
[1730298302776,7.36774,2714.6,2714.1,3.68445]
[1730298303074,7.36774,2714.6,2714.1,4.5418358]
[1730298303356,3.68394,2714.5,2714.1,4.5418358]
[1730298303522,3.68384,2714.6,2714.1,0.8573858]
[1730298303725,3.68414,2714.4,2714.0,0.7604]
[1730298304045,3.6844,2714.2,2713.7,0.7995]
[1730298304284,0.8202,2714.3,2713.7,4.48442]
[1730298304562,3.68446,2714.1,2713.7,1.61646]
[1730298304938,0.8202,2714.3,2713.7,1.61646]
[1730298304939,4.50452,2714.3,2713.7,5.30146]
[1730298305146,3.68441,2714.2,2713.7,1.61646]
[1730298305331,3.68441,2714.2,2713.7,5.30138]
[1730298305530,0.7956,2714.9,2714.0,0.7915]
[1730298305760,3.68372,2714.7,2714.2,3.68425]
[1730298306764,3.6838,2714.6,2714.1,3.68433]
[1730298306958,3.6838,2714.6,2714.0,4.47608]
[1730298307157,3.7956,2714.9,2714.0,1.699422]
[1730298307158,3.68417,2714.4,2714.0,1.699422]
[1730298307365,7.3683,2714.4,2714.0,0.7915]
[1730298307671,3.68387,2714.6,2714.0,0.7915]
[1730298307841,3.68341,2714.9,2714.1,0.07368808]
[1730298308044,3.68329,2715.0,2714.5,3.68384]
[1730298308254,4.46508,2715.2,2714.7,3.68362]
[1730298308468,4.46508,2715.2,2714.7,4.44132]
[1730298308469,3.68298,2715.2,2714.7,4.44132]
[1730298308629,3.68298,2715.2,2714.7,4.44133]
[1730298308940,3.68279,2715.4,2714.9,3.68337]
[1730298309147,0.06334941,2715.5,2715.2,3.6829]
[1730298309353,4.45239,2715.8,2715.3,4.44051]
[1730298309555,3.74545882,2715.9,2715.4,3.68258]
[1730298309883,3.74545882,2715.9,2715.5,3.68252]
[1730298310049,3.68222,2715.8,2715.3,4.44053]
[1730298310369,3.68198,2716.0,2715.4,3.68268]
[1730298310557,3.68198,2716.0,2715.4,7.36527]
[1730298310757,3.68198,2716.0,2715.4,3.68259]
[1730298310941,3.68198,2716.0,2715.5,3.68254]
[1730298311151,3.68198,2716.0,2715.4,3.68259]
[1730298311335,3.68161,2716.2,2715.5,3.68256]
[1730298311712,3.68129,2716.5,2715.7,0.7918]
[1730298311994,3.68143,2716.4,2715.8,3.68204]
[1730298312290,3.68143,2716.4,2715.9,3.68194]
[1730298312465,3.68143,2716.4,2715.8,0.88583491]
[1730298312649,0.8181,2716.6,2715.8,0.88583491]
[1730298312849,3.68155,2716.3,2715.8,0.88583491]
[1730298313051,3.68155,2716.3,2715.7,0.7918]
[1730298313288,3.68155,2716.3,2715.7,4.47408]
[1730298313480,3.68169,2716.2,2715.7,0.7918]
[1730298313684,4.4992,2716.6,2715.7,0.7918]
[1730298313886,3.68217,2715.8,2715.4,0.8151]
[1730298314094,3.68217,2715.8,2715.1,8.11655]
[1730298314395,3.68217,2715.8,2715.2,3.68285]
[1730298314555,3.68217,2715.8,2715.3,3.68281]
[1730298314760,0.7823,2716.0,2715.5,3.68248]
[1730298314956,3.68179,2716.1,2715.6,4.43291]
[1730298315156,3.68143,2716.4,2715.8,3.68215]
[1730298315568,4.468,2716.6,2715.9,3.68199]
[1730298315766,4.468,2716.6,2716.1,3.68174]
[1730298315991,0.7869,2716.6,2716.1,3.68174]
[1730298316198,0.7869,2716.6,2715.8,3.68208]
[1730298316199,3.68141,2716.4,2715.8,3.68208]
[1730298316404,3.68126,2716.5,2715.9,3.68193]
[1730298317096,4.46803,2716.6,2716.0,3.68185]
[1730298317298,4.46803,2716.6,2716.0,3.6818]
[1730298317460,8.14918,2716.6,2716.0,3.6818]
[1730298317658,3.68121,2716.5,2716.0,3.68179]
[1730298317993,4.46803,2716.6,2716.0,4.418176]
[1730298318181,4.46803,2716.6,2716.0,0.736386]
[1730298318368,3.68141,2716.4,2715.8,3.68206]
[1730298318569,3.68141,2716.4,2715.9,3.68194]
[1730298318883,3.68123,2716.5,2715.9,3.68194]
[1730298319191,3.68127,2716.5,2715.9,3.68194]
[1730298319359,4.46803,2716.6,2716.0,0.368194]
[1730298320302,3.68121,2716.5,2716.0,4.049984]
[1730298320711,0.06404594,2716.8,2716.7,3.68093]
[1730298320997,3.67987,2717.5,2717.0,3.68044]
[1730298321457,0.1313583,2717.6,2717.3,3.68001]
[1730298321657,0.1313583,2717.6,2717.4,3.67998]
[1730298321857,0.1313583,2717.6,2717.4,3.6799]
[1730298322100,0.1313583,2717.6,2717.4,3.67989]
[1730298322282,0.1313583,2717.6,2717.5,3.67985]
[1730298322662,0.1313583,2717.6,2717.5,8.06435908]
[1730298323109,0.1313583,2717.6,2717.4,4.56948934]
[1730298323262,0.1313583,2717.6,2717.4,3.6799]
[1730298323594,0.1313583,2717.6,2717.5,8.06435908]
[1730298323799,0.1313583,2717.6,2717.5,8.61435908]
[1730298323984,0.1313583,2717.6,2717.4,3.6799]
[1730298324385,0.1313583,2717.6,2717.5,3.67985]
[1730298324592,0.1313583,2717.6,2717.5,8.8834334]
[1730298324897,0.1313583,2717.6,2717.5,9.4334334]
[1730298325262,0.06401744,2718.5,2718.0,3.67905]
[1730298325614,0.8091,2718.6,2718.1,0.367905]
[1730298325830,3.6787,2718.4,2717.6,8.06413908]
[1730298325984,0.06399835,2719.0,2718.6,3.67827]
[1730298326302,3.67693,2719.7,2718.5,0.7945]
[1730298326303,3.67687,2719.7,2718.5,0.7945]
[1730298326503,3.67687,2719.7,2718.6,0.51790091]
[1730298326504,3.67791,2719.0,2718.6,0.51790091]
[1730298326718,3.67763,2719.2,2718.6,3.75184357]
[1730298326891,3.67763,2719.2,2718.5,0.7945]
[1730298327087,3.67705,2719.6,2718.5,0.7945]
[1730298327088,3.67783,2719.0,2718.5,0.7945]
[1730298327400,3.67791,2719.0,2718.5,0.7945]
[1730298327594,7.35582,2719.0,2718.5,0.7945]
[1730298327945,3.67809,2718.8,2718.2,4.98092]
[1730298328108,3.67797,2718.9,2718.2,4.43092]
[1730298328307,3.67825,2718.7,2718.2,4.43092]
[1730298328681,3.67825,2718.7,2718.2,0.7521]
[1730298328883,3.67837,2718.6,2718.2,0.7521]
[1730298329087,4.50771,2719.1,2717.9,0.7517]
[1730298329088,3.67871,2718.4,2717.9,0.7517]
[1730298329578,3.67871,2718.4,2717.6,0.7517]
[1730298329579,0.7974,2718.4,2717.6,0.7517]
[1730298329918,3.67899,2718.2,2717.6,0.7517]
[1730298330327,7.358,2718.2,2717.6,0.7517]
[1730298330616,3.67899,2718.2,2717.6,0.7517]
[1730298330832,3.67944,2717.9,2717.3,0.8301]